Cogmind - Beta 14 @@@ ROGUE MODE // 2024.08.20 @ 16:44:01 Player: jimmyl Result: Destroyed by D-53 Grenadier with Mini Grenade Launcher Performance ------------- Evolutions (0) 0 Regions Visited (2) 400 Robots Destroyed (15) 75 Value Destroyed (269) 269 Prototype IDs (0) 0 Alien Tech Used (0) 0 Bonus (0) 0 TOTAL SCORE: 744 Bonus ------- None Cogmind --------- Core Integrity 0/250 Matter 56/300 Energy 100/100 System Corruption 0% Temperature Cool (48) Movement Core (700) Ox13 Location -10/Mines Parts ------- > --- POWER (1) -------- (None) > --- PROPULSION (2) --- (None) > --- UTILITY (2) ------ High-capacity Storage Unit Targeting Computer > --- WEAPON (2) ------- (None) > --- INVENTORY (20) --- Ion Engine Compact Wheel Compact Wheel Structural Scanner Experimental Sensor Array EM Pulse Gun Medium Laser Beam Cannon Grenade Launcher Peak State ------------ > --- POWER ------------ Ion Engine > --- PROPULSION ------- Aluminum Leg Aluminum Leg > --- UTILITY ---------- Small Storage Unit Visual Processing Unit > --- WEAPON ----------- Improved Light Cannon Improved Light Cannon > --- INVENTORY -------- Ion Engine Light Treads Light Treads Compact Wheel Compact Wheel Structural Scanner EM Pulse Gun Medium Laser [Rating: 10] Favorites ----------- Power Ion Engine Engine Ion Engine Propulsion Light Treads Treads Light Treads Leg Aluminum Leg Utility Targeting Computer Storage High-capacity Storage Unit Processor Targeting Computer Weapon Improved Light Cannon Energy Gun Medium Laser Ballistic Gun Light Assault Rifle Ballistic Cannon Improved Light Cannon Build | -11 -10 -10 ------- Run | Yrd Mat Min Slots Evolved . | . . . Power . | . . . Propulsion . | . . . Utility . | . . . Weapon . | . . . Parts Attached 7 | . 7 . Power . | . . . Engine . | . . . Core . | . . . Reactor . | . . . Propulsion 2 | . 2 . Treads 2 | . 2 . Leg . | . . . Wheel . | . . . Hover . | . . . Flight . | . . . Utility 3 | . 3 . Device . | . . . Storage 1 | . 1 . Processor 2 | . 2 . Hackware . | . . . Protection . | . . . Artifact . | . . . Weapon 2 | . 2 . Energy Gun . | . . . Energy Cannon . | . . . Ballistic Gun . | . . . Ballistic Cannon 2 | . 2 . Launcher . | . . . Special Weapon . | . . . Impact Weapon . | . . . Slashing Weapon . | . . . Piercing Weapon . | . . . Special Melee Weapon . | . . . Unidentified Prototypes . | . . . Parts Lost 5 | . . 5 Power 1 | . . 1 Propulsion 2 | . . 2 Utility . | . . . Weapon 2 | . . 2 Highest Loss Streak 5 | . . 5 To Critical Strikes . | . . . Average Slot Usage (%) 98 | . 97 99 Engine 14 | . 14 14 Treads 25 | . 24 27 Leg 1 | . 3 . Storage 14 | . 14 14 Processor 13 | . 12 14 Ballistic Cannon 26 | . 24 28 Peak Build Rating 10 | . 10 10 Average Rating 8 | . 8 9 On Entrance 7 | 6 6 9 Naked Turns . | . . . Heaviest Build 53 | 13 53 53 Greatest Support 40 | 20 40 40 Greatest Overweight (x) 2 | . 1 2 Average Overweight (x) . | . . 1 Largest Inventory Capacity 20 | . 20 20 Average Capacity 18 | . 17 20 Most Carried 9 | . 8 9 Average Carried 7 | . 6 7 Final Capacity 20 | 8 20 20 Final Carried 9 | 6 7 9 Class Distribution -------------------- 100% | Mutant Dominant Class ---------------- Mutant | -10/Materials Mutant | -10/Mines Resources | -11 -10 -10 ----------- Run | Yrd Mat Min Matter Collected 314 | 200 104 10 Remotely . | . . . Salvage Created 201 | . 169 32 Parts 23 | . 20 3 Haulers Intercepted . | . . . Recyclers Shooed 1 | . 1 . Parts Field Recycled . | . . . Retrieved Matter . | . . . Parts Self-Destructed . | . . . Prevented . | . . . Kills | -11 -10 -10 ------- Run | Yrd Mat Min Combat Hostiles Destroyed 14 | . 7 7 Cannons 14 | . 7 7 Classes Destroyed 5 | . 4 1 Worker 2 | . 2 . Watcher 3 | . 3 . Swarmer 6 | . 3 3 Grunt 4 | . 4 . Assembled 4 | . . 4 Best Kill Streak 4 | . 4 4 Combat Bots Only 4 | . 3 4 Max Kills in Single Turn 2 | . 2 1 Gunslinging . | . . . Exploded . | . . . Melee . | . . . Uniques/NPCs Destroyed . | . . . Combat | -11 -10 -10 -------- Run | Yrd Mat Min Hostile Shots Fired 80 | . 42 38 Missed 22 | . 11 11 Damage Taken 866 | . 297 569 Core 250 | . 46 204 Absorbed by Shields . | . . . Core Remaining (%) 100 | 100 . . Volleys Fired 40 | . 26 14 Largest 2 | . 2 2 Hottest 78 | . 78 78 Shots Fired 80 | . 52 28 Gun . | . . . Cannon 80 | . 52 28 Launcher . | . . . Special . | . . . Kinetic 80 | . 52 28 Thermal . | . . . Explosive . | . . . Electromagnetic . | . . . Robot Hit Streak 9 | . 8 9 Robot Miss Streak 6 | . 6 3 Penetration Max . | . . . Secondary Targets . | . . . Shots Hit Robots 42 | . 25 17 Core Hits 22 | . 14 8 Critical Kills . | . . . Critical Parts Destroyed . | . . . Critical Strikes 3 | . 3 . Blast 3 | . 3 . Melee Attacks . | . . . Impact . | . . . Slashing . | . . . Piercing . | . . . Sneak Attacks . | . . . Combat Hostiles . | . . . Follow-up Attacks . | . . . Damage Inflicted 945 | . 588 357 Guns . | . . . Cannons 932 | . 575 357 Explosions . | . . . Melee . | . . . Ramming 13 | . 13 . Kinetic 932 | . 575 357 Thermal . | . . . Explosive . | . . . Electromagnetic . | . . . Impact . | . . . Slashing . | . . . Piercing . | . . . Highest Corruption . | . . . Average Corruption . | . . . Corruption Purged . | . . . Corruption Blocked . | . . . Overload Shots . | . . . Overflow Damage 7 | . 3 4 Projectiles 7 | . 3 4 Explosions . | . . . Melee . | . . . Knockbacks 10 | . 4 6 Impact 1 | . 1 . Kinetic 7 | . 3 4 Secondary 2 | . . 2 Self-Inflicted Damage . | . . . Shots . | . . . Rammed 2 | . 2 . Targets Rammed 2 | . 2 . Kicked . | . . . Crushed . | . . . Highest Temperature 126 | . 90 126 Average Temperature 39 | . 34 50 Received Heat Transfer 45 | . 45 . Siege Activations . | . . . Robots Corrupted . | . . . Combat Hostiles . | . . . Parts Fried . | . . . Impact Corruptions . | . . . Robots Melted . | . . . Combat Hostiles . | . . . Parts Melted . | . . . Heat Transferred . | . . . Parts Sabotaged . | . . . Parts Stolen . | . . . Parts Stripped . | . . . Power Chain Reactions . | . . . Alert | -11 -10 -10 ------- Run | Yrd Mat Min Peak Influence 207 | . 207 151 Initial 80 | . . 80 Average 69 | . 44 102 Maximum Alert Level 1 | . 1 . Low Security (%) 97 | . 95 100 Level 1 2 | . 4 . Level 2 . | . . . Level 3 . | . . . Level 4 . | . . . Level 5 . | . . . High Security . | . . . Max Security . | . . . Squads Dispatched 1 | . 1 . Investigation . | . . . Extermination . | . . . Reinforcement 1 | . 1 . Assault . | . . . Garrison . | . . . Intercept . | . . . Searches Triggered . | . . . Construction Impeded . | . . . Haulers Reinforced . | . . . Active Scanning Responses . | . . . Cargo Convoy Interrupts . | . . . Stealth | -11 -10 -10 --------- Run | Yrd Mat Min Distress Signals 1 | . 1 . Communications Jammed . | . . . Distress Signals . | . . . Times Spotted 21 | . 12 9 Peak Tracking Total 4 | . 3 4 Tactical Retreats 1 | . 1 . Traps | -11 -10 -10 ------- Run | Yrd Mat Min Traps Triggered . | . . . Indirectly . | . . . Trap Hack Attempts . | . . . Triggered . | . . . Disarmed . | . . . Reprogrammed . | . . . Reused . | . . . Traps Extracted . | . . . Installed . | . . . Triggered . | . . . Machines | -11 -10 -10 ---------- Run | Yrd Mat Min Machines Disabled 1 | . 1 . Max in Single Turn 1 | . 1 . Machines Repaired . | . . . Machines Dismantled . | . . . Machines Sabotaged . | . . . Overloaded Fab Kills . | . . . Hacking | -11 -10 -10 --------- Run | Yrd Mat Min Machines Accessed 1 | . 1 . Terminals 1 | . 1 . Fabricators . | . . . Repair Stations . | . . . Recycling Units . | . . . Scanalyzers . | . . . Garrison Access . | . . . Total Hacks 2 | . 2 . Successful 1 | . 1 . Failed . | . . . Catastrophic . | . . . Database Lockouts 1 | . 1 . Manual 2 | . 2 . Terminals 2 | . 2 . Fabricators . | . . . Repair Stations . | . . . Recycling Units . | . . . Scanalyzers . | . . . Garrison Access . | . . . Terminal Hacks 1 | . 1 . Robot Analysis 1 | . 1 . Fabricator Hacks . | . . . Repair Station Hacks . | . . . Recycling Unit Hacks . | . . . Scanalyzer . | . . . Garrison Access Hacks . | . . . Unauthorized Hacks . | . . . Terminals . | . . . Fabricators . | . . . Repair Stations . | . . . Recycling Units . | . . . Scanalyzers . | . . . Garrison Access . | . . . Data Cores Recovered . | . . . Used . | . . . Hacking Detections . | . . . Full Trace Events . | . . . Feedback Events . | . . . Feedback Blocked . | . . . Robot Schematics Acquired . | . . . Robots Built . | . . . Authchips . | . . . Time . | . . . Total Robot Build Rating . | . . . Part Schematics Acquired . | . . . Parts Built . | . . . Authchips . | . . . Time . | . . . Total Part Build Rating . | . . . Parts Repaired . | . . . Time . | . . . Parts Recycled . | . . . Recycled Matter . | . . . Retrieved Matter . | . . . Retrieved Components . | . . . Parts Scanalyzed . | . . . Part Schematics Acquired . | . . . Parts Damaged . | . . . Bothacking | -11 -10 -10 ------------ Run | Yrd Mat Min Used RIF Installer . | . . . Robots Hacked . | . . . Non-combat . | . . . Combat . | . . . Robot Hacks Applied . | . . . Relay Couplers Released . | . . . Fabnet Peak Effective % . | . . . Robots Rewired . | . . . Allies Hacked . | . . . Hacks Repelled . | . . . Allies | -11 -10 -10 -------- Run | Yrd Mat Min Total Allies . | . . . Largest Group . | . . . Highest-Rated Group . | . . . Highest-Rated Ally . | . . . Total Orders . | . . . Ally Attacks . | . . . Total Damage . | . . . Kills . | . . . Allies Corrupted . | . . . Allies Melted . | . . . Intel | -11 -10 -10 ------- Run | Yrd Mat Min Robot Analysis Total 1 | . 1 . Derelict Logs Recovered 1 | . . 1 Drone Launches . | . . . Drone Recoveries . | . . . Exploration | -11 -10 -10 ------------- Run | Yrd Mat Min Turns Passed 1293 | . 727 566 Spaces Moved 503 | 1 295 207 Core . | . . . Treads 433 | . 226 207 Legs 70 | 1 69 . Wheels . | . . . Hover . | . . . Flight . | . . . Fastest Speed 120 | 120 120 240 Average Speed 220 | 120 205 240 Slowest Speed 320 | 120 240 320 Overloaded Moves . | . . . Propulsion Burnouts . | . . . Robots Hopped . | . . . Cave-ins Triggered . | . . . Exploration Rate (%) 43 | 2 63 64 Regions Visited 2 Branch Regions 1 Pre-discovered Areas 1 | . . 1 Known Exits Taken . | . . . Unknown Exits Taken 2 | 1 1 . Scrap Searched . | . . . Spaces Dug . | . . . Terrain Destroyed 6 | . 3 3 Melee . | . . . Projectile 6 | . 3 3 AOE . | . . . Terrain Rammed . | . . . Walls Destroyed . | . . . Machines Disabled . | . . . Actions | -11 -10 -10 --------- Run | Yrd Mat Min Total 608 | . 361 247 Wait 48 | . 24 24 Move 501 | . 294 207 Hop . | . . . Pick Up 4 | . 2 2 Fast Attach 4 | . 4 . Attach 2 | . 2 . Detach 1 | . 1 . Swap 1 | . 1 . Drop 5 | . 5 . Fire 40 | . 26 14 Melee . | . . . Ram . | . . . Kick . | . . . Crush 2 | . 2 . Escape Stasis . | . . . Rewire . | . . . Trap . | . . . Miscellaneous . | . . . Route ------- -11/Scrapyard -10/Materials (discovered 4 exits: [*Mat x3] / [*Min]) -10/Mines (discovered 1 exit: [*Mat]) History --------- Turn | Location | Event 1 | -11/Scrapyard | Discovered new exit (range 0) 1 | -11/Scrapyard | Entered Materials 73 | -10/Materials | Central database locked down 305 | -10/Materials | Build established: Mutant 308 | -10/Materials | Discovered new exit (range 11) 376 | -10/Materials | Discovered new exit (range 11) 644 | -10/Materials | Discovered new exit (range 6) 663 | -10/Materials | Discovered new exit (range 15) 728 | -10/Materials | Entered Mines 733 | -10/Mines | Learned location of Zion (-6) 875 | -10/Mines | YI-UF0 nonchalantly dropped a Grenade Launcher on the ground 877 | -10/Mines | Discovered new exit (range 13) 1238 | -10/Mines | Assembled infested the area 1239 | -10/Mines | Found a damaged Exp. Sensor Array with a note attached 1244 | -10/Mines | Found Prototype Device 1275 | -10/Mines | Core integrity fell below 50% 1290 | -10/Mines | Core integrity fell below 20% 1294 | -10/Mines | Destroyed by D-53 Grenadier with Mini Grenade Launcher Last Messages --------------- keeps telling us we should avoid high-traffic areas because that's where patrols are more likely to show up, but that doesn't do us much good if we can't spot those areas until they're on top of us... With this we can! Deliver it to Megawrench for repairs then we'll never be afraid of an ambush while sneaking around Materials again, ha." 01244_ Acquired Prototype Device. 01266_ as-13649 destroyed. 01269_ as-32062 destroyed. 01272_ as-64079 destroyed. 01274_ Lgt. Treads destroyed. 01275_ as-77043 destroyed. 01285_ C-30 ARC bursts open, deploying its payload. 01285_ D-53 Grenadier unfolds itself. 01289_ D-53 Grenadier knocked back. 01292_ Imp. Light Cannon destroyed. 01294_ The unstable cave ceiling collapses. 01294_ Ion Engine destroyed. 01294_ Lgt. Treads destroyed. Map ----- +----------------------------------------------------+ | | | | | | | | | | | | | | | | | | | | | | | | | | | | | | | | | | | ??????????????????????????????????????????????? | | ??????????????????????????????????????????????? | | ?????????????????????????####?????????????????? | | ??????????????????????#### ##????????????????? | | ?????????????????????## ##???????????????? | | ?#####??????????????## ##??????????????? | | ## ##?????????????# #??????????????? | | #?????????????# #??????????????? | | #?????####????# @ d%## #???????????? | | ##????## ##???# d #???????????? | | ## ##?????# ##??# # ####???????????? | | #####?????## ##?## # % #?????????????? | | ?????????## = ##?## ####?????????????? | | ????????## =##?##### #????????????????? | | ????????# #?????# ##???????????????? | | ???????## #????## #???????????????? | | ??????## ###### ##???????????????? | | ????###= #????????????????? | | ???## = ##????????????????? | | ??## ## ## ###?????????????????? | | ### ### ### ##???????????????????? | | ##?# #?####????????????????????? | | #??# #?????????????????????????? | | ## ##??# #?????????????????????????? | | ## ! #???# #?????????????????????????? | | # #???# #?????????????????????????? | | # ## #??# #?????????????????????????? | | ## #### #?? ??????????????????????????? | | ?## ##??## ? ??????????????????????????? | | ??# #????## #?#??????????????????????????? | | ??# #?????## #?????????????????????????????? | | #?# ???????##$??????????????????????????????? | | ## ????????????????????????????????????????? | +----------------------------------------------------+ Best States ------------- Heat Dissipation 25 Energy Generation 10 Energy Capacity 250 Matter Stores 300 Matter Capacity 300 Sight Range 18 Terrain Scan Density 10 Evasion (%) 55 Targeting Accuracy 5 Recoil Reduction 2 Item Schematics ----------------- None Robot Schematics ------------------ None Fabricated ------------ Nothing Alien Tech Used ----------------- None Achievements -------------- None Challenges ------------ None Game ------ Seed SwarmDataFlightbrick Manual? 0 Play Time 00:05:37 Cumulative 102.6 hours Start 2024.08.20 @ 16:39:45 End 2024.08.20 @ 16:44:01 Sessions 1 Manual Loads 0 Difficulty Rogue Special Mode None Game No. 176 Rogue 175 Adventurer 1 Explorer 0 Win Type - Total 0 Types 0/0/0/0/0/0/0/0/0 Lore% 59 Gallery% 63 Achievement% 48 Wizard Run 0 Options --------- Layout 1 ASCII 0 Keyboard 0 Movement Mouse Keybinds 0 Fullscreen 2 Font 20/SmallcapsGlow Map View 54x42 Zoom Use 0% Tactical HUD 1 Map Filters NONE Filters NONE Steam 0 RUN: 2f8d5f3f-abf1-40f5-95d6-d801be5ce1ec